fUST/lending_fUST_20250930
["ID","MTS","AMOUNT","RATE_DAILY","PERIOD"]
[388492016,1759210249810,-492.87,0.00020472,2]
[388492017,1759210249818,-480.58,0.00020472,2]
[388492018,1759210249827,-480.0,0.00020472,2]
[388492019,1759210249836,-480.0,0.00020472,2]
[388492020,1759210249845,-480.0,0.00020472,2]
[388492021,1759210249854,-480.0,0.00020472,2]
[388492022,1759210249864,-490.23237961,0.00020472,2]
[388492023,1759210249873,-480.0,0.00020472,2]
[388492024,1759210249882,-494.53,0.00020472,2]
[388492025,1759210249891,-508.99,0.00020472,2]
[388492026,1759210249900,-480.0,0.00020472,2]
[388492027,1759210249910,-607.17,0.00020472,2]
[388492028,1759210249919,-1335.74,0.00020472,2]
[388492029,1759210249928,-500.0,0.00020472,2]
[388492030,1759210249936,-480.0,0.00020472,2]
[388492031,1759210249945,-480.0,0.00020472,2]
[388492032,1759210249954,-480.0,0.00020472,2]
[388492033,1759210249964,-480.0,0.00020472,2]
[388492034,1759210249973,-363.87362108,0.00020472,2]
[388492035,1759210249982,-480.0,0.00020472,2]
[388492036,1759210249991,-1123.71,0.00020472,2]
[388492037,1759210250000,-480.0,0.00020472,2]
[388492038,1759210250010,-572.56,0.00020472,2]
[388492039,1759210250024,-480.0,0.00020472,2]
[388492040,1759210250037,-480.0,0.00020472,2]
[388492041,1759210250046,-480.0,0.00020472,2]
[388492042,1759210250055,-549.83,0.00020472,2]
[388492043,1759210250064,-480.0,0.00020472,2]
[388492044,1759210250073,-480.0,0.00020472,2]
[388492045,1759210250084,-480.0,0.00020472,2]
[388492046,1759210250093,-480.0,0.00020472,2]
[388492047,1759210250102,-480.0,0.00020472,2]
[388492048,1759210250113,-480.0,0.00020472,2]
[388492049,1759210250122,-480.0,0.00020472,2]
[388492050,1759210250131,-505.4,0.00020472,2]
[388492051,1759210250140,-480.0,0.00020472,2]
[388492052,1759210250150,-480.0,0.00020472,2]
[388492053,1759210250159,-483.21038888,0.00020472,2]
[388492054,1759210250168,-480.0,0.00020472,2]
[388492055,1759210250177,-480.0,0.00020472,2]
[388492056,1759210250186,-480.0,0.00020472,2]
[388492057,1759210250195,-480.0,0.00020472,2]
[388492058,1759210250204,-892.56,0.00020472,2]
[388492059,1759210250214,-480.0,0.00020472,2]
[388492060,1759210250223,-480.0,0.00020472,2]
[388492061,1759210250233,-480.0,0.00020472,2]
[388492062,1759210250242,-480.0,0.00020472,2]
[388492063,1759210250251,-500.0,0.00020473,2]
[388492064,1759210250260,-500.0,0.00020473,2]
[388492065,1759210250269,-500.0,0.00020473,2]
[388492066,1759210250278,-503.31108564,0.00020473,2]
[388492067,1759210250287,-500.0,0.00020473,2]
[388492068,1759210250297,-482.64300943,0.00020473,2]
[388492069,1759210250305,-480.0,0.00020473,2]
[388492070,1759210250315,-480.0,0.00020473,2]
[388492071,1759210250324,-480.0,0.00020473,2]
[388492072,1759210250333,-480.0,0.00020473,2]
[388492073,1759210250342,-480.0,0.00020473,2]
[388492074,1759210250351,-480.0,0.00020473,2]
[388492075,1759210250360,-496.85,0.00020475,2]
[388492076,1759210250369,-480.0,0.00020486,2]
[388492077,1759210250378,-289419.17642302,0.000205,22]
[388492078,1759210250387,-549.5,0.000205,2]
[388492079,1759210250396,-1000.0,0.00020521,2]
[388492080,1759210250405,-311.99556444,0.00020521,2]
[388492081,1759210250414,-1000.0,0.00020521,2]
[388492082,1759210250424,-1000.0,0.00020521,2]
[388492083,1759210250433,-1000.0,0.00020521,2]
[388492084,1759210250442,-1000.0,0.00020521,2]
[388492085,1759210250451,-506.65330282,0.00020521,2]
[388492086,1759210250460,-1000.0,0.00020521,2]
[388492087,1759210250468,-1000.74517004,0.00020521,2]
[388492088,1759210250477,-501.09073009,0.00020521,2]
[388492089,1759210250487,-1000.0,0.00020521,2]
[388492090,1759210250499,-1000.0,0.00020521,2]
[388492091,1759210250508,-1000.0,0.00020521,2]
[388492092,1759210250517,-1000.0,0.00020521,2]
[388492093,1759210250525,-1000.0,0.00020521,2]
[388492094,1759210250534,-1000.0,0.00020521,2]
[388492095,1759210250543,-1000.0,0.00020521,2]
[388492096,1759210250552,-1000.0,0.00020521,2]
[388492097,1759210250562,-1000.0,0.00020521,2]
[388492098,1759210250574,-1000.0,0.00020521,2]
[388492099,1759210250583,-500.0,0.000206,2]
[388492100,1759210250592,-1847.94748654,0.00020616,2]
[388492101,1759210253118,-480.0,0.00019548,2]
[388492102,1759210253151,-185.92956018,0.00019549,2]
[388492103,1759210254724,480.0,0.00019548,2]
[388492104,1759210254754,480.0,0.00019548,2]
[388492105,1759210257408,5000.0,0.0001955,2]
[388492106,1759210258277,500.0,0.00019548,2]
[388492107,1759210259344,300.0,0.000194,2]
[388492108,1759210259602,480.0,0.00019548,2]
[388492109,1759210264665,1428.15087964,0.00019173,2]
[388492110,1759210264690,10000.01,0.00019173,2]
[388492111,1759210264715,5876.61785816,0.00019173,2]
[388492112,1759210267509,480.0,0.00019548,2]
[388492113,1759210270217,300.0,0.000194,2]
[388492114,1759210270694,480.0,0.0001955,2]
[388492115,1759210271657,480.0,0.00019548,2]
[388492116,1759210272321,480.0,0.0001955,2]
[388492117,1759210273290,1200.0,0.0001955,2]
[388492118,1759210275487,480.0,0.00019548,2]
[388492119,1759210277386,223.39214184,0.00019548,2]
[388492120,1759210277411,802.72785816,0.00019548,2]
[388492121,1759210280715,300.0,0.000194,2]
[388492122,1759210280863,480.0,0.00019548,2]
[388492123,1759210281193,5000.0,0.0001955,2]
[388492124,1759210290005,3417.28214184,0.0001955,2]
[388492125,1759210290029,1582.71785816,0.0001955,2]
[388492126,1759210293910,538.28802393,0.00019548,2]
[388492127,1759210293942,500.0,0.00019548,2]
[388492128,1759210294294,500.0,0.00019548,2]
[388492129,1759210294747,500.0,0.00019548,2]
[388492130,1759210295064,300.0,0.00019548,2]
[388492131,1759210298579,851.41397404,0.0001955,2]
[388492132,1759210304063,168.0,0.00019523,2]
[388492133,1759210306804,5000.0,0.0001955,2]
[388492134,1759210307823,59.59014387,0.0001955,2]
[388492135,1759210307849,440.40985613,0.0001955,2]
[388492136,1759210307880,201.76414772,0.0001955,2]
[388492137,1759210307918,500.0,0.0001955,2]
[388492138,1759210307947,500.0,0.0001955,2]
[388492139,1759210307980,500.0,0.0001955,2]
[388492140,1759210308009,500.0,0.0001955,2]
[388492141,1759210308049,500.0,0.0001955,2]
[388492142,1759210308102,500.0,0.0001955,2]
[388492143,1759210308190,500.0,0.0001955,2]
[388492144,1759210308220,500.0,0.0001955,2]
[388492145,1759210308251,500.0,0.0001955,2]
[388492146,1759210308283,500.0,0.0001955,2]
[388492147,1759210308318,500.0,0.0001955,2]
[388492148,1759210308348,500.0,0.0001955,2]
[388492149,1759210308379,500.0,0.0001955,2]
[388492150,1759210308409,500.0,0.0001955,2]
[388492151,1759210308442,505.17323084,0.0001955,2]
[388492152,1759210308478,500.0,0.0001955,2]
[388492153,1759210308511,500.0,0.0001955,2]
[388492154,1759210308542,500.0,0.0001955,2]
[388492155,1759210308571,352.66276531,0.0001955,2]
[388492156,1759210308595,147.33723469,0.0001955,2]
[388492157,1759210308626,500.0,0.0001955,2]
[388492158,1759210308655,500.0,0.0001955,2]
[388492159,1759210308684,500.0,0.0001955,2]
[388492160,1759210308715,500.0,0.0001955,2]
[388492161,1759210308745,500.0,0.0001955,2]
[388492162,1759210308774,500.0,0.0001955,2]
[388492163,1759210308810,500.0,0.0001955,2]
[388492164,1759210308840,500.0,0.0001955,2]
[388492165,1759210308872,193.56695238,0.0001955,2]
[388492166,1759210308904,500.0,0.0001955,2]
[388492167,1759210308932,500.0,0.0001955,2]
[388492168,1759210308960,500.0,0.0001955,2]
[388492169,1759210308989,500.0,0.0001955,2]
[388492170,1759210309022,500.0,0.0001955,2]
[388492171,1759210309055,530.69,0.00019548,2]
[388492172,1759210309084,500.0,0.0001955,2]
[388492173,1759210309111,500.0,0.0001955,2]
[388492174,1759210314719,1628.41581293,0.0001955,2]
[388492175,1759210314743,3371.58418707,0.0001955,2]
[388492176,1759210324931,3151.25,0.00019549,2]
[388492177,1759210331078,3477.17581293,0.0001955,2]
[388492178,1759210331104,1522.82418707,0.0001955,2]
[388492179,1759210332152,480.0,0.00019548,2]
[388492180,1759210339039,410.486327,0.0001955,2]
[388492181,1759210341848,7586.69948593,0.00018892,2]
[388492182,1759210341872,10000.01,0.00018892,2]
[388492183,1759210341895,1645.39974467,0.00018892,2]
[388492184,1759210351214,867.62,0.00019548,2]
[388492185,1759210351280,242.4602847,0.000189,2]
[388492186,1759210352763,1201.66,0.00019548,2]
[388492187,1759210354721,5000.0,0.0001955,2]
[388492188,1759210377723,5000.0,0.00019448,2]
[388492189,1759210400639,5000.0,0.00019448,2]
[388492190,1759210409359,0.01,0.00018769,2]
[388492191,1759210409382,10000.01,0.00018769,2]
[388492192,1759210409403,10000.01,0.00018769,2]
[388492193,1759210409425,10000.01,0.00018769,2]
[388492194,1759210409650,10000.01,0.00018769,2]
[388492195,1759210409673,10000.01,0.00018769,2]
[388492196,1759210409695,10000.01,0.00018769,2]
[388492197,1759210409718,8041.1066235,0.00018769,2]
[388492199,1759210450867,159.2550529,0.00019448,2]
[388492200,1759210457425,-300.0,0.00019547,2]
[388492202,1759210502409,300.0,0.00019547,2]
[388492203,1759210506522,1200.0,0.00019547,2]
[388492204,1759210512118,154.0,7.9e-07,2]
[388492205,1759210513356,154.0,7.9e-07,2]
[388492206,1759210562776,300.0,0.00019547,2]
[388492207,1759210576687,184.39571548,0.00019448,2]
[388492208,1759210593562,500.0,0.00019547,2]
[388492209,1759210593609,500.0,0.00019547,2]
[388492210,1759210593642,500.0,0.00019547,2]
[388492211,1759210593677,167.24147009,0.00019547,2]
[388492212,1759210593711,299.28521693,0.00019547,2]
[388492213,1759210622406,300.0,0.00019547,2]
[388492214,1759210639977,1200.0,0.00019547,2]
[388492215,1759210675568,302.42545213,0.00019449,2]
[388492216,1759210679460,-160.0,0.00019548,2]
[388492217,1759210679484,-23.94297066,0.00019548,2]
[388492218,1759210682145,-408.13593994,0.00019548,2]
[388492221,1759210682572,300.0,0.00019547,2]
[388492226,1759210698457,246.80703072,0.00019547,2]
[388492227,1759210703512,165.250848,0.000187,2]
[388492228,1759210703590,-816.27187988,0.00019548,2]
[388492229,1759210721730,408.13593994,0.00019547,2]
[388492230,1759210735706,1305.54753276,0.00019448,2]
[388492231,1759210736618,480.0,0.00019547,2]
[388492233,1759210743149,300.0,0.00019547,2]
[388492234,1759210752835,132.92079395,0.00018731,2]
[388492235,1759210752860,69.07710375,0.00018731,2]
[388492236,1759210802701,300.0,0.00019547,2]
[388492237,1759210805963,-160.0,0.00019548,2]
[388492238,1759210806953,1200.0,0.00019547,2]
[388492239,1759210808285,710.4050005,0.00018863,2]
[388492240,1759210817836,483.82089907,0.00019547,2]
[388492241,1759210822325,-1730.90819192,0.00019548,2]
[388492242,1759210822357,-10000.01,0.00019548,2]
[388492243,1759210825750,-2921.93234556,0.00019548,2]
[388492244,1759210832748,480.0,0.00019547,2]
[388492245,1759210834270,831.47,0.00019547,2]
[388492246,1759210840305,480.0,0.00019547,2]
[388492247,1759210850782,480.0,0.00019547,2]
[388492248,1759210859982,480.0,0.00019547,2]
[388492249,1759210862270,300.0,0.00019547,2]
[388492250,1759210872583,1104.67530888,0.00019547,2]
[388492251,1759210872608,352.41319349,0.00019547,2]
[388492252,1759210876670,480.0,0.00019547,2]
[388492253,1759210881083,484.05,0.00019547,2]
[388492254,1759210881638,983.37,0.00019547,2]
[388492255,1759210882867,480.0,0.00019547,2]
[388492256,1759210902006,276.3394246,0.00018819,2]
[388492257,1759210909019,-47.9210894,0.00019548,2]
[388492258,1759210909049,-480.0,0.00019548,2]
[388492259,1759210909078,-480.0,0.00019548,2]
[388492260,1759210909108,-480.0,0.00019548,2]
[388492261,1759210909136,-480.0,0.00019548,2]
[388492262,1759210909168,-480.0,0.00019548,2]
[388492263,1759210909196,-615.11,0.00019548,2]
[388492264,1759210909226,-480.0,0.00019548,2]
[388492265,1759210909256,-480.0,0.00019548,2]
[388492266,1759210909285,-945.06,0.00019548,2]
[388492267,1759210909745,618.55,0.00019547,2]
[388492268,1759210910616,-480.0,0.00019548,2]
[388492269,1759210910644,-619.61,0.00019548,2]
[388492270,1759210910672,-481.4469786,0.00019548,2]
[388492271,1759210910700,-480.0,0.00019548,2]
[388492272,1759210910729,-480.0,0.00019548,2]
[388492273,1759210910757,-480.0,0.00019548,2]
[388492274,1759210910786,-495.51,0.00019548,2]
[388492275,1759210910814,-480.0,0.00019548,2]
[388492276,1759210910842,-653.85,0.00019548,2]
[388492277,1759210910870,-219.1760428,0.00019548,2]
[388492278,1759210911027,-260.8239572,0.00019548,2]
[388492279,1759210911054,-480.0,0.00019548,2]
[388492280,1759210911082,-480.0,0.00019548,2]
[388492281,1759210911112,-480.0,0.00019548,2]
[388492282,1759210911141,-574.68,0.00019548,2]
[388492283,1759210911174,-480.0,0.00019548,2]
[388492284,1759210911207,-495.67,0.00019548,2]
[388492285,1759210911236,-729.86,0.00019548,2]
[388492286,1759210911265,-480.0,0.00019548,2]
[388492287,1759210911292,-480.0,0.00019548,2]
[388492288,1759210911478,-556.39803203,0.00019548,2]
[388492289,1759210911507,-623.9,0.00019548,2]
[388492290,1759210911538,-480.0,0.00019548,2]
[388492291,1759210911568,-480.0,0.00019548,2]
[388492292,1759210911600,-480.0,0.00019548,2]
[388492293,1759210911630,-634.45,0.00019548,2]
[388492294,1759210911662,-1494.88,0.00019548,2]
[388492295,1759210911692,-20.75393594,0.00019548,2]
[388492296,1759210911910,-459.24606406,0.00019548,2]
[388492297,1759210911941,-480.0,0.00019548,2]
[388492298,1759210911970,-1042.61,0.00019548,2]
[388492299,1759210912001,-480.0,0.00019548,2]
[388492300,1759210912031,-824.02,0.00019548,2]
[388492301,1759210912060,-619.85,0.00019548,2]
[388492302,1759210912090,-480.0,0.00019548,2]
[388492303,1759210912119,-429.46787188,0.00019548,2]
[388492304,1759210912260,-369.62212812,0.00019548,2]
[388492305,1759210912288,-480.0,0.00019548,2]
[388492306,1759210912318,-320.51778742,0.00019548,2]
[388492307,1759210912347,-480.0,0.00019548,2]
[388492308,1759210912379,-480.0,0.00019548,2]
[388492309,1759210912409,-480.0,0.00019548,2]
[388492310,1759210912440,-480.0,0.00019548,2]
[388492311,1759210912470,-480.0,0.00019548,2]
[388492312,1759210912501,-524.35859322,0.00019548,2]
[388492313,1759210912533,-572.65,0.00019548,2]
[388492314,1759210912566,-185.71298248,0.00019548,2]
[388492315,1759210912864,-294.28701752,0.00019548,2]
[388492316,1759210912897,-480.0,0.00019548,2]
[388492317,1759210912930,-480.89132859,0.00019548,2]
[388492318,1759210912961,-480.0,0.00019548,2]
[388492319,1759210912991,-480.0,0.00019548,2]
[388492320,1759210913022,-480.0,0.00019548,2]
[388492321,1759210913052,-480.0,0.00019548,2]
[388492322,1759210913083,-1001.25,0.00019548,2]
[388492323,1759210913113,-480.0,0.00019548,2]
[388492324,1759210913145,-207.15330778,0.00019548,2]
[388492325,1759210913264,-272.84669222,0.00019548,2]
[388492326,1759210913294,-480.0,0.00019548,2]
[388492327,1759210913325,-480.0,0.00019548,2]
[388492328,1759210913356,-480.0,0.00019548,2]
[388492329,1759210913387,-403.5943404,0.00019548,2]
[388492330,1759210913416,-480.0,0.00019548,2]
[388492331,1759210913445,-480.0,0.00019548,2]
[388492332,1759210913474,-480.0,0.00019548,2]
[388492333,1759210913503,-480.0,0.00019548,2]
[388492334,1759210913533,-480.0,0.00019548,2]
[388492335,1759210913562,-304.90635201,0.00019548,2]
[388492336,1759210913750,-480.0,0.00019548,2]
[388492337,1759210913780,-480.0,0.00019548,2]
[388492338,1759210913810,-531.51,0.00019548,2]
[388492339,1759210913841,-480.0,0.00019548,2]
[388492340,1759210913871,-480.0,0.00019548,2]
[388492341,1759210913900,-480.0,0.00019548,2]
[388492342,1759210913932,-480.0,0.00019548,2]
[388492343,1759210913961,-500.0,0.00019548,2]
[388492344,1759210913992,-480.0,0.00019548,2]
[388492345,1759210914022,-166.66,0.00019548,2]
[388492346,1759210914053,-403.67,0.00019548,2]
[388492347,1759210914214,-76.33,0.00019548,2]
[388492348,1759210914243,-480.0,0.00019548,2]
[388492349,1759210914273,-246.73146296,0.00019548,2]
[388492350,1759210914303,-1113.11,0.00019548,2]
[388492351,1759210914331,-480.0,0.00019548,2]
[388492352,1759210914359,-480.0,0.00019548,2]
[388492353,1759210914387,-480.0,0.00019548,2]
[388492354,1759210914414,-480.0,0.00019548,2]
[388492355,1759210914444,-480.0,0.00019548,2]
[388492356,1759210914472,-480.0,0.00019548,2]
[388492357,1759210918917,-482.32709947,0.00019548,2]
[388492358,1759210918952,-480.0,0.00019548,2]
[388492359,1759210918981,-480.0,0.00019548,2]
[388492360,1759210919011,-480.0,0.00019548,2]
[388492361,1759210919040,-936.42,0.00019548,2]
[388492362,1759210919073,-480.0,0.00019548,2]
[388492363,1759210919103,-480.0,0.00019548,2]
[388492364,1759210919133,-480.0,0.00019548,2]
[388492365,1759210919163,-480.0,0.00019548,2]
[388492366,1759210919761,442.51580106,0.00019548,2]
[388492367,1759210919785,37.48419894,0.00019548,2]
[388492368,1759210925423,480.0,0.00019548,2]
[388492369,1759210929321,480.0,0.00019548,2]
[388492371,1759210936246,500.94714268,0.00019547,2]
[388492373,1759210937754,1151.59,0.00019547,2]
[388492374,1759210941349,480.0,0.00019548,2]
[388492376,1759210944984,700.45,0.00019547,2]
[388492377,1759210946844,480.0,0.00019548,2]
[388492378,1759210948998,480.0,0.00019547,2]
[388492379,1759210958592,480.0,0.00019547,2]
[388492380,1759210961403,480.0,0.00019548,2]
[388492381,1759210962456,497.67,0.00019547,2]
[388492382,1759210965944,482.96062571,0.00019548,2]
[388492383,1759210966778,480.0,0.00019548,2]
[388492384,1759210968109,480.0,0.00019548,2]
[388492385,1759210980383,480.0,0.00019548,2]
[388492386,1759210992813,480.0,0.00019548,2]
[388492387,1759210993929,536.51,0.00019547,2]
[388492389,1759211000618,480.0,0.00019548,2]
[388492390,1759211002562,332.39803267,0.00019548,2]
[388492391,1759211002587,147.60196733,0.00019548,2]
[388492392,1759211005342,743.8,0.00019548,2]
[388492393,1759211010101,480.0,0.00019547,2]
[388492394,1759211010638,480.0,0.00019548,2]
[388492395,1759211013498,589.48,0.00019547,2]
[388492396,1759211026147,480.0,0.00019548,2]
[388492397,1759211030170,480.0,0.00019548,2]
[388492398,1759211034809,4432.15,0.00019547,2]
[388492399,1759211036242,480.0,0.00019547,2]
[388492400,1759211041271,505.47,0.00019547,2]
[388492401,1759211049873,1181.50803267,0.00019547,2]
[388492402,1759211049899,2190.71196733,0.00019547,2]
[388492403,1759211060734,480.0,0.00019548,2]
[388492404,1759211064324,-1142.35409113,0.00019722,2]
[388492405,1759211065982,420.77,0.00019547,2]
[388492406,1759211071612,480.0,0.00019548,2]
[388492407,1759211071972,480.0,0.00019548,2]
[388492408,1759211085374,221.18529258,0.00019547,2]
[388492409,1759211087871,480.0,0.00019548,2]
[388492410,1759211089173,905.68,0.00019547,2]
[388492411,1759211090012,593.79,0.00019547,2]
[388492412,1759211090619,313.75,0.00019547,2]
[388492413,1759211098715,480.0,0.00019547,2]
[388492414,1759211113624,480.0,0.00019547,2]
[388492415,1759211118754,480.0,0.00019547,2]
[388492416,1759211125684,480.0,0.00019547,2]
[388492417,1759211131389,480.0,0.00019547,2]
[388492418,1759211139987,480.0,0.00019547,2]
[388492419,1759211155580,480.0,0.00019547,2]
[388492420,1759211159415,460.12652516,0.00019547,2]
[388492421,1759211159439,19.87347484,0.00019547,2]
[388492422,1759211171233,480.0,0.00019547,2]
[388492423,1759211183019,550.73,0.00019547,2]
[388492424,1759211188536,516.91,0.00019547,2]
[388492425,1759211191181,699.45,0.00019547,2]
[388492426,1759211194143,-168.0,0.00019726,2]
[388492427,1759211194164,-122.22086844,0.00019809,2]
[388492428,1759211198876,594.03,0.00019547,2]
[388492429,1759211235705,597.9,0.00019547,2]
[388492430,1759211243899,480.0,0.00019547,2]
[388492431,1759211249514,480.0,0.00019547,2]
[388492432,1759211254725,1432.59,0.00019547,2]
[388492433,1759211264877,999.17,0.00019547,2]
[388492434,1759211277909,790.72,0.00019547,2]
[388492435,1759211284791,999.55982973,0.00019721,2]
[388492436,1759211311064,480.0,0.00019547,2]
[388492437,1759211337115,480.0,0.00019547,2]
[388492438,1759211397976,480.0,0.00019547,2]
[388492439,1759211401184,480.0,0.00019547,2]
[388492486,1759211432067,-1200.0,0.00019819,2]
[388492488,1759211432077,-300.0,0.00019819,2]
[388492490,1759211432085,-595.5,0.00019819,2]
[388492495,1759211432125,-604.5,0.00019819,2]
[388492497,1759211432135,-480.0,0.0001982,2]
[388492499,1759211432143,-203.35994128,0.0001982,2]
[388492501,1759211432152,-721.7,0.0001982,2]
[388492503,1759211432161,-480.0,0.0001982,2]
[388492504,1759211432169,-480.0,0.0001982,2]
[388492506,1759211432178,-480.0,0.0001982,2]
[388492508,1759211432187,-480.0,0.0001982,2]
[388492510,1759211432196,-480.0,0.0001982,2]
[388492513,1759211432205,-480.0,0.0001982,2]
[388492515,1759211432213,-480.0,0.0001982,2]
[388492518,1759211432222,-480.0,0.0001982,2]
[388492521,1759211432231,-480.0,0.0001982,2]
[388492523,1759211432240,-480.0,0.0001982,2]
[388492526,1759211432249,-480.0,0.0001982,2]
[388492528,1759211432258,-480.0,0.0001982,2]
[388492530,1759211432267,-480.0,0.0001982,2]
[388492532,1759211432276,-514.15,0.0001982,2]
[388492534,1759211432284,-480.0,0.0001982,2]
[388492535,1759211432293,-480.0,0.0001982,2]
[388492537,1759211432302,-3913.96205873,0.0001982,2]
[388492637,1759211437964,-333.50794127,0.0001982,2]
[388492638,1759211437974,-480.0,0.0001982,2]
[388492639,1759211437984,-480.0,0.0001982,2]
[388492640,1759211437993,-798.89,0.0001982,2]
[388492641,1759211438003,-3231.72,0.0001982,2]
[388492642,1759211438012,-480.0,0.0001982,2]
[388492643,1759211438022,-480.0,0.0001982,2]
[388492644,1759211438032,-480.0,0.0001982,2]
[388492645,1759211438042,-505.4,0.0001982,2]
[388492646,1759211438052,-480.0,0.0001982,2]
[388492647,1759211438062,-480.0,0.0001982,2]
[388492648,1759211438072,-480.0,0.0001982,2]
[388492649,1759211438081,-482.57813904,0.0001982,2]
[388492650,1759211438092,-480.0,0.0001982,2]
[388492651,1759211438101,-480.0,0.0001982,2]
[388492652,1759211438111,-592.78,0.0001982,2]
[388492653,1759211438120,-480.0,0.0001982,2]
[388492654,1759211438129,-271.21055416,0.0001982,2]
[388492665,1759211441463,-400.05944584,0.0001982,2]
[388492666,1759211441473,-480.0,0.0001982,2]
[388492667,1759211441483,-480.0,0.0001982,2]
[388492668,1759211441494,-480.0,0.0001982,2]
[388492669,1759211441503,-583.97,0.0001982,2]
[388492670,1759211441512,-480.0,0.0001982,2]
[388492671,1759211441522,-480.0,0.0001982,2]
[388492672,1759211441532,-480.0,0.00019821,2]
[388492673,1759211441541,-480.0,0.00019821,2]
[388492674,1759211441550,-480.0,0.00019821,2]
[388492675,1759211441560,-480.0,0.00019821,2]
[388492676,1759211441569,-983.37,0.00019821,2]
[388492677,1759211441578,-1151.59,0.00019821,2]
[388492678,1759211441588,-480.0,0.00019821,2]
[388492679,1759211441597,-480.0,0.00019821,2]
[388492680,1759211441606,-589.48,0.00019821,2]
[388492681,1759211441616,-480.0,0.00019821,2]
[388492682,1759211441625,-905.68,0.00019821,2]
[388492683,1759211441634,-593.79,0.00019821,2]
[388492684,1759211441643,-480.0,0.00019821,2]
[388492685,1759211441652,-480.0,0.00019821,2]
[388492686,1759211441662,-480.0,0.00019821,2]
[388492687,1759211441671,-480.0,0.00019821,2]
[388492688,1759211441680,-480.0,0.00019821,2]
[388492689,1759211441689,-480.0,0.00019821,2]
[388492690,1759211441698,-480.0,0.00019821,2]
[388492691,1759211441707,-480.0,0.00019821,2]
[388492692,1759211441716,-480.0,0.00019821,2]
[388492693,1759211441726,-550.73,0.00019821,2]
[388492694,1759211441735,-699.45,0.00019821,2]
[388492695,1759211441745,-594.03,0.00019821,2]
[388492696,1759211441754,-597.9,0.00019821,2]
[388492697,1759211441764,-480.0,0.00019821,2]
[388492698,1759211441773,-480.0,0.00019821,2]
[388492699,1759211441782,-1432.59,0.00019821,2]
[388492700,1759211441791,-479.05420416,0.00019821,2]
[388492701,1759211441815,-520.11579584,0.00019821,2]
[388492702,1759211441824,-114.88420416,0.00019821,2]
[388492714,1759211446142,-675.83579584,0.00019821,2]
[388492715,1759211446152,-480.0,0.00019821,2]
[388492716,1759211446161,-480.0,0.00019821,2]
[388492717,1759211446171,-480.0,0.00019821,2]
[388492718,1759211446180,-79.78539423,0.00019821,2]
[388492720,1759211471815,275.70701699,0.00019797,2]
[388492721,1759211487386,480.0,0.00019547,2]
[388492722,1759211516204,-190.49204894,0.0001982,2]
[388492723,1759211518015,480.0,0.00019547,2]